fUSD/lending_fUSD_20240702
["ID","MTS","AMOUNT","RATE_DAILY","PERIOD"]
[330945207,1719960643132,-840.64392545,0.00014,2]
[330945224,1719960645594,-1951.40039262,0.00014,2]
[330945235,1719960645776,-2497.79507697,0.00014,2]
[330945236,1719960645788,-1427.36830522,0.00014,2]
[330945237,1719960645799,-7511.43041172,0.00014,2]
[330945238,1719960645811,-33048.83433905,0.00014,2]
[330945239,1719960645822,-1383.40857251,0.00014,2]
[330945240,1719960645833,-1907.67492,0.00014,2]
[330945241,1719960645844,-1418.946,0.00014,2]
[330945242,1719960645855,-6000.0,0.00014,2]
[330945243,1719960645867,-32313.05553848,0.00014,2]
[330945244,1719960645878,-373.49520537,0.00014,2]
[330945245,1719960645889,-1774.86208729,0.00014,2]
[330945246,1719960645901,-768.06384375,0.00014,2]
[330945247,1719960645912,-7403.1204677,0.00014,2]
[330945248,1719960645924,-27330.41277066,0.00014,2]
[330945249,1719960645935,-32344.28612523,0.00014,2]
[330945250,1719960645947,-133214.89867129,0.00014,2]
[330945251,1719960645959,-47370.02553739,0.00014,2]
[330945252,1719960645970,-155527.82433044,0.00014,2]
[330945253,1719960645982,-2325.64980315,0.00014,2]
[330945254,1719960645993,-1011.70786118,0.00014,2]
[330945255,1719960646004,-235681.67277337,0.00014,2]
[330945256,1719960646039,-11173.27156439,0.00014,2]
[330945257,1719960646051,-12718.08216078,0.00014,2]
[330945258,1719960646062,-1313.87865291,0.00014,2]
[330945259,1719960646074,-32951.44758523,0.00014,2]
[330945260,1719960646086,-1728.82114959,0.00014,2]
[330945261,1719960646099,-29884.01435,0.00014,2]
[330945262,1719960646111,-1002.44274149,0.00014,2]
[330945263,1719960646123,-824.59977352,0.00014,2]
[330945264,1719960646134,-325.74924272,0.00014,2]
[330945265,1719960646144,-1462.76416002,0.00014,2]
[330945266,1719960646156,-13513.4435892,0.00014,2]
[330945267,1719960646167,-322.51994525,0.00014,2]
[330945268,1719960646178,-267.2327988,0.00014,2]
[330945269,1719960646189,-2250.53767768,0.00014,2]
[330945272,1719960719396,754.22229355,0.00011199,2]
[330945274,1719960952327,992.03500697,0.00011199,2]
[330945275,1719960975588,523.29,0.00010746,2]
[330945276,1719961001707,-358.56718894,0.00012202,2]
[330945277,1719961001733,-178.4933045,0.00012214,2]
[330945278,1719961001758,-258.6924005,0.00012273,2]
[330945279,1719961001785,-2200.78376882,0.00012273,2]
[330945280,1719961001809,-232.17552127,0.00012302,2]
[330945281,1719961001835,-529.49575669,0.00012302,2]
[330945282,1719961001860,-429.20553447,0.00012302,2]
[330945283,1719961001885,-450.18965827,0.00012302,2]
[330945284,1719961001911,-150.0,0.00012635,2]
[330945285,1719961001936,-250.0,0.00012636,2]
[330945286,1719961001963,-1000.0,0.00012649,2]
[330945287,1719961001992,-151.31,0.00012747,2]
[330945288,1719961002024,-1092.18,0.00012763,2]
[330945290,1719961003983,218.90686654,0.00012273,2]
[330945291,1719961050978,307.62565821,0.00011199,2]
[330945292,1719961088104,1134.26087877,0.00011199,2]
[330945293,1719961102860,2353.02741175,0.00011199,2]
[330945294,1719961120867,1012.87391772,0.00011199,2]
[330945295,1719961132965,1054.20873751,0.00011199,2]
[330945296,1719961181198,753.5293985,0.00011199,2]
[330945298,1719961209373,647.26467047,0.00011199,2]
[330945299,1719961237574,652.42686958,0.00011199,2]
[330945302,1719961287332,788.56484494,0.00011199,2]
[330945305,1719961354431,1562.99457939,0.00011199,2]
[330945306,1719961356809,254.17046342,0.00011199,2]
[330945307,1719961365534,155.0,0.00011199,2]
[330945308,1719961392110,1286.76187843,0.00011199,2]
[330945309,1719961487173,282.85029854,0.00011199,2]
[330945310,1719961489954,155.11456855,0.00011199,2]
[330945313,1719961646600,497.12,0.00010887,2]
[330945314,1719961646747,790.06697348,0.00011199,2]
[330945315,1719961647351,784.34389222,0.00011199,2]
[330945316,1719961662496,237.91067889,0.00011199,2]
[330945317,1719961688132,1285.41542027,0.00011199,2]
[330945335,1719961809842,253.75644412,0.00011199,2]
[330945356,1719961831867,-411.54635958,0.00012302,2]
[330945359,1719961831879,-196.43535554,0.00012302,2]
[330945360,1719961831889,-235.30745469,0.00012314,2]
[330945361,1719961831899,-191.06,0.00012708,2]
[330945362,1719961831909,-168.03,0.00012724,2]
[330945364,1719961831918,-360.0,0.00012727,2]
[330945365,1719961831928,-250.0,0.00012806,2]
[330945366,1719961831937,-893.37,0.00012811,2]
[330945367,1719961831947,-250.0,0.00012813,2]
[330945368,1719961831957,-956.61,0.00012836,2]
[330945369,1719961831966,-2688.98,0.00012933,2]
[330945370,1719961831976,-462.51,0.00012933,2]
[330945371,1719961831986,-28451.65,0.00012933,2]
[330945372,1719961831995,-172.38414633,0.00013128,2]
[330945373,1719961832005,-168.07679819,0.00013128,2]
[330945374,1719961832016,-595.76620023,0.00013128,2]
[330945375,1719961832025,-497.12,0.00013151,2]
[330945376,1719961832035,-400.0,0.000134,4]
[330945377,1719961832044,-150.0,0.00013441,2]
[330945378,1719961832054,-463.12,0.00013442,2]
[330945379,1719961832064,-727.88837222,0.00013472,2]
[330945380,1719961832073,-155.0,0.00013472,2]
[330945381,1719961832082,-297.36585903,0.00013472,2]
[330945382,1719961832092,-492.75515407,0.00013472,2]
[330945383,1719961832101,-205.32220319,0.00013472,2]
[330945384,1719961832111,-1341.25974129,0.00013472,2]
[330945385,1719961832120,-3392.48845374,0.00013472,2]
[330945386,1719961832129,-155.10841432,0.00013472,2]
[330945387,1719961832138,-800.0,0.000135,4]
[330945388,1719961832147,-163.65389911,0.00013543,2]
[330945389,1719961832156,-684.6855422,0.00013574,2]
[330945390,1719961832166,-430.66592486,0.00013574,2]
[330945391,1719961832175,-235.2687,0.000136,2]
[330945392,1719961832184,-1200.0,0.000136,4]
[330945393,1719961832193,-160.08,0.00013699,2]
[330945394,1719961832207,-404.7,0.00013699,2]
[330945395,1719961832217,-1600.0,0.000137,5]
[330945396,1719961832226,-150.0,0.00013736,2]
[330945397,1719961832236,-150.0,0.00013737,2]
[330945398,1719961832246,-150.0,0.00013745,2]
[330945399,1719961832256,-150.0,0.00013746,2]
[330945400,1719961832265,-150.0,0.00013749,2]
[330945401,1719961832275,-150.0,0.0001376,2]
[330945402,1719961832285,-150.0,0.00013773,2]
[330945403,1719961832294,-150.0,0.00013774,2]
[330945404,1719961832303,-150.0,0.00013792,2]
[330945405,1719961832313,-150.0,0.00013793,2]
[330945406,1719961832322,-150.0,0.00013798,2]
[330945407,1719961832332,-2000.0,0.000138,5]
[330945408,1719961832342,-150.0,0.00013801,2]
[330945409,1719961832351,-150.0,0.00013806,2]
[330945410,1719961832361,-150.0,0.00013806,2]
[330945411,1719961832370,-150.0,0.00013807,2]
[330945412,1719961832380,-150.0,0.00013809,2]
[330945413,1719961832389,-150.0,0.00013813,2]
[330945414,1719961832399,-150.0,0.00013824,2]
[330945415,1719961832409,-150.0,0.00013827,2]
[330945416,1719961832418,-150.0,0.00013834,2]
[330945417,1719961832428,-150.0,0.00013835,2]
[330945418,1719961832437,-150.0,0.0001384,2]
[330945419,1719961832448,-150.0,0.00013845,2]
[330945420,1719961832457,-150.0,0.00013846,2]
[330945421,1719961832467,-150.0,0.00013846,2]
[330945422,1719961832478,-150.0,0.00013847,2]
[330945423,1719961832487,-150.0,0.0001385,2]
[330945424,1719961832497,-150.0,0.00013852,2]
[330945425,1719961832507,-3199.8938,0.0001386,2]
[330945426,1719961832520,-150.0,0.0001386,2]
[330945427,1719961832532,-1295.71747,0.0001386,2]
[330945428,1719961832543,-150.0,0.00013861,2]
[330945429,1719961832557,-150.0,0.00013863,2]
[330945430,1719961832567,-150.0,0.00013867,2]
[330945431,1719961832578,-150.0,0.00013881,2]
[330945432,1719961832589,-150.0,0.00013884,2]
[330945433,1719961832599,-150.0,0.00013889,2]
[330945434,1719961832608,-557.53573856,0.00013889,2]
[330945435,1719961832618,-182.08348635,0.0001389,2]
[330945436,1719961832627,-150.0,0.00013892,2]
[330945437,1719961832637,-150.0,0.00013897,2]
[330945438,1719961832648,-150.0,0.00013898,2]
[330945439,1719961832658,-1381.1924,0.00013899,2]
[330945440,1719961832667,-1731.09260606,0.00013899,2]
[330945441,1719961832678,-2375.8251,0.00013899,2]
[330945442,1719961832688,-1216.50343576,0.00013899,2]
[330945443,1719961832698,-5508.01758361,0.00013899,2]
[330945444,1719961832707,-2302.74565689,0.000139,2]
[330945445,1719961832717,-328.96366532,0.000139,2]
[330945446,1719961832726,-3092.65769115,0.000139,2]
[330945447,1719961832740,-6907.34230885,0.000139,2]
[330945448,1719961832749,-160.8988254,0.000139,2]
[330945449,1719961832759,-183.06532134,0.000139,2]
[330945450,1719961832768,-165.07157834,0.000139,2]
[330945451,1719961832778,-4404.0062415,0.000139,2]
[330945452,1719961832788,-400.0,0.000139,5]
[330945453,1719961832800,-1405.3021,0.000139,2]
[330945454,1719961832811,-1422.4284512,0.000139,2]
[330945455,1719961832820,-162.19706699,0.000139,2]
[330945456,1719961832829,-219.38813236,0.000139,2]
[330945457,1719961832839,-1731.09260606,0.000139,2]
[330945458,1719961832849,-150.0,0.00013914,2]
[330945459,1719961832858,-150.0,0.00013914,2]
[330945460,1719961832867,-150.0,0.00013916,2]
[330945461,1719961832877,-150.0,0.00013919,2]
[330945462,1719961832887,-150.0,0.0001392,2]
[330945463,1719961832896,-156.77215774,0.00013924,2]
[330945464,1719961832910,-150.0,0.00013928,2]
[330945465,1719961832919,-150.0,0.0001394,2]
[330945466,1719961832929,-150.0,0.00013948,2]
[330945467,1719961832942,-150.0,0.0001395,2]
[330945468,1719961832951,-150.0,0.00013951,2]
[330945469,1719961832961,-150.0,0.00013953,2]
[330945470,1719961832971,-150.0,0.00013955,2]
[330945471,1719961832981,-150.0,0.00013959,2]
[330945472,1719961832992,-150.0,0.00013962,2]
[330945473,1719961833002,-150.0,0.00013965,2]
[330945474,1719961833011,-150.0,0.00013971,2]
[330945475,1719961833021,-150.0,0.00013972,2]
[330945476,1719961833031,-191.611872,0.00013973,2]
[330945477,1719961833041,-150.0,0.00013977,2]
[330945478,1719961833051,-150.0,0.00013977,2]
[330945479,1719961833060,-150.0,0.00013981,2]
[330945480,1719961833070,-150.0,0.00013988,2]
[330945481,1719961833080,-12963.8233583,0.00013989,2]
[330945482,1719961833089,-150.0,0.00013993,2]
[330945483,1719961833099,-150.0,0.00013995,2]
[330945484,1719961833108,-14057.682635,0.00013998,2]
[330945485,1719961833118,-1342.28138561,0.00013999,2]
[330945486,1719961833127,-99489.15845931,0.00013999,2]
[330945487,1719961833192,-584.59550704,0.00013999,2]
[330945488,1719961833204,-452.75892829,0.00013999,2]
[330945489,1719961834457,-12236.0,0.00013999,2]
[330945492,1719961834469,-603.50800002,0.00013999,2]
[330945494,1719961834480,-37984.2699835,0.00013999,2]
[330945521,1719961837899,-166137.78766909,0.00013999,2]
[330945524,1719961837910,-1831.83045146,0.00013999,5]
[330945526,1719961837921,-150.0,0.00013999,2]
[330945530,1719961837930,-587.0,0.00014,2]
[330945533,1719961837940,-3835.74734217,0.00014,2]
[330945537,1719961837952,-1857.45675927,0.00014,2]
[330945540,1719961837965,-54502.08868122,0.00014,2]
[330945565,1719961838185,-1138.18072319,0.00014,2]
[330945567,1719961838197,-3116.23335189,0.00014,2]
[330945570,1719961838208,-70512.55288488,0.00014,2]
[330945572,1719961838220,-20034.6916629,0.00014,2]
[330945573,1719961838268,-529.12011047,0.00014,2]
[330945574,1719961838280,-3447.22339029,0.00014,2]
[330945575,1719961838292,-257.47467377,0.00014,2]
[330945576,1719961838304,-314.59,0.00014,2]
[330945577,1719961838317,-1814.56851,0.00014,2]
[330945578,1719961838328,-5999.8,0.00014,2]
[330945579,1719961838340,-10219.39772,0.00014,2]
[330945580,1719961838351,-16164.12480671,0.00014,2]
[330945587,1719961840099,-32935.320011,0.00014,2]
[330945588,1719961840395,-265.760515,0.00014,2]
[330945589,1719961840407,-15001.91222307,0.00014,2]
[330945590,1719961840418,-3831.87451852,0.00014,2]
[330945591,1719961840430,-526.97025706,0.00014,2]
[330945592,1719961840441,-3571.80604586,0.00014,2]
[330945593,1719961840452,-1004.65819641,0.00014,2]
[330945595,1719961840678,-419.121,0.00014,2]
[330945597,1719961840690,-3424.5,0.00014,2]
[330945599,1719961840702,-88513.95765878,0.00014,2]
[330945726,1719961843130,-13370.40175638,0.00014,2]
[330945750,1719961846188,-846.47514523,0.00014,2]
[330945751,1719961846205,-27921.17983108,0.00014,2]
[330945804,1719962193055,502.54,0.00011198,2]
[330945810,1719962467816,430.53999999,0.00011198,2]
[330945812,1719962557642,2803.02212864,0.00011199,2]
[330945813,1719962580068,31519.38720001,0.00011199,2]
[330945814,1719962588286,4151.44607251,0.00011199,2]
[330945817,1719962666984,6540.55781867,0.00011199,2]
[330945818,1719962684505,1604.848858,0.00011199,2]
[330945819,1719962704221,1135.15116749,0.00011199,2]
[330945820,1719962725428,477.41,0.00010817,2]
[330945821,1719962738749,1146.49066819,0.00011199,2]
[330945822,1719962754453,3393.16408193,0.00011199,2]
[330945823,1719962774465,647.57320469,0.00011199,2]
[330945825,1719962796777,296.87186128,0.00011199,2]
[330945826,1719962797652,474.68333876,0.00011199,2]
[330945827,1719962804767,296.87186128,0.00011199,2]
[330945828,1719962810713,258.88603077,0.00011199,2]
[330945829,1719962824938,305.49353727,0.00011199,2]
[330945830,1719962825477,155.0,0.00011199,2]
[330945831,1719962854945,305.49353727,0.00011199,2]
[330945833,1719962875685,438.16706068,0.00011199,2]
[330945835,1719962944455,3388.42357099,0.00011199,2]
[330945836,1719962978742,1494.94298711,0.00011199,2]
[330945841,1719963005244,1029.65223895,0.00011199,2]
[330945842,1719963023340,524.1073643,0.00011199,2]
[330945863,1719963032093,-395.30040255,0.00012302,2]
[330945864,1719963032102,-199.46340719,0.00012314,2]
[330945865,1719963032111,-1542.95404804,0.00012745,2]
[330945866,1719963032122,-251.61595196,0.00012745,2]
[330945867,1719963032133,-64.16356654,0.00012786,2]
[330945868,1719963032144,-103.86643346,0.00012786,2]
[330945869,1719963032153,-250.0,0.00012799,2]
[330945870,1719963032162,-288.0,0.00012819,2]
[330945871,1719963032175,-54.90788256,0.00012922,2]
[330945872,1719963032186,-102.37211744,0.00012922,2]
[330945873,1719963032194,-477.41,0.00013081,2]
[330945874,1719963032203,-109.52029664,0.00013128,2]
[330945875,1719963032217,-448.12958754,0.00013128,2]
[330945876,1719963032227,-88.92031285,0.00013128,2]
[330945877,1719963032237,-209.96997035,0.00013128,2]
[330945878,1719963032249,-304.30259704,0.00013128,2]
[330945879,1719963032258,-155.0,0.00013128,2]
[330945880,1719963032269,-157.28,0.00013146,2]
[330945881,1719963032279,-386.98,0.00013146,2]
[330945882,1719963032288,-150.0,0.0001337,2]
[330945883,1719963032297,-157.28,0.00013371,2]
[330945884,1719963032441,-5840.66131339,0.00013371,2]
[330945887,1719963032476,-650.01339646,0.00013371,2]
[330945889,1719963032488,-765.29022052,0.00013371,2]
[330945891,1719963032499,-2744.02506963,0.00013371,2]
[330945893,1719963032508,-242.22,0.00013371,2]
[330945895,1719963032517,-1282.21774417,0.00013472,2]
[330945897,1719963032526,-155.0,0.00013472,2]
[330945899,1719963032535,-258.49877023,0.00013472,2]
[330945901,1719963032544,-474.00920134,0.00013472,2]
[330945903,1719963032553,-296.87186128,0.00013472,2]
[330945905,1719963032562,-280.1309389,0.00013472,2]
[330945907,1719963032571,-211.47465837,0.00013516,2]
[330945909,1719963032580,-213.55733381,0.00013516,2]
[330945911,1719963032588,-754.22229355,0.00013574,2]
[330945913,1719963032597,-1494.94298711,0.00013574,2]
[330945915,1719963032606,-155.14785367,0.00013574,2]
[330945917,1719963032615,-157.28,0.00013595,2]
[330945919,1719963032624,-160.08,0.00013699,2]
[330945921,1719963032633,-288.5,0.00013699,2]
[330945923,1719963032642,-1000.0,0.0001371,2]
[330945925,1719963032651,-279.34311326,0.00013728,2]
[330945927,1719963032660,-1054.99023326,0.00013736,2]
[330945930,1719963032670,-150.0,0.00013746,2]
[330945931,1719963032679,-788.56484494,0.00013759,2]
[330945933,1719963032688,-150.0,0.00013789,2]
[330945936,1719963032698,-565.9024,0.00013799,2]
[330945937,1719963032707,-1094.85309222,0.00013799,2]
[330945939,1719963032719,-4957.21582524,0.000138,2]
[330945941,1719963032728,-150.0,0.00013807,2]
[330945942,1719963032739,-150.0,0.00013808,2]
[330945943,1719963032749,-150.0,0.00013835,2]
[330945944,1719963032759,-150.0,0.00013839,2]
[330945945,1719963032768,-150.0,0.00013883,2]
[330945946,1719963032784,-200.0,0.00013887,2]
[330945947,1719963032798,-500.0,0.00013888,2]
[330945948,1719963032807,-200.0,0.00013888,2]
[330945949,1719963032816,-3122.88916039,0.00013889,2]
[330945950,1719963032826,-150.0,0.0001389,2]
[330945951,1719963032836,-10254.4028732,0.00013899,2]
[330945952,1719963032849,-360.35116936,0.00013899,2]
[330945955,1719963038204,-155.0,0.00013128,2]
[330945956,1719963038215,-822.69249947,0.00013899,2]
[330945957,1719963038227,-335.76750053,0.00013899,2]
[330945958,1719963038400,-5283.43737236,0.00013899,2]
[330945959,1719963038411,-7832.93162208,0.00013899,2]
[330945960,1719963039920,-1342.17653788,0.00013899,2]
[330945961,1719963039933,-264.62603996,0.00013899,2]
[330945964,1719963040445,-1791.76807849,0.00013899,2]
[330945965,1719963040458,-12874.38635967,0.00013899,2]
[330945966,1719963040471,-987.22897559,0.00013899,2]
[330945967,1719963040483,-1011.59816096,0.00013899,2]
[330945968,1719963040662,-2137.01187072,0.00013899,2]
[330945969,1719963040674,-2495.58714316,0.00013899,2]
[330945970,1719963040687,-3776.76316371,0.00013899,2]
[330945971,1719963040699,-1096.04159675,0.00013899,2]
[330945972,1719963040712,-4341.68845553,0.00013899,2]
[330945973,1719963040725,-2757.99397552,0.00013899,2]
[330945974,1719963040736,-577.00470878,0.00013899,2]
[330945975,1719963040749,-5601.26,0.00013899,2]
[330945976,1719963040761,-857.94087483,0.00013899,2]
[330945977,1719963040773,-11376.32190347,0.00013899,2]
[330945978,1719963040877,-125014.99801798,0.00013899,2]
[330945979,1719963040887,-155.0,0.00013899,2]
[330945980,1719963040898,-183.06532133,0.000139,2]
[330945981,1719963040908,-7500.0,0.000139,2]
[330945982,1719963040918,-4037.00572143,0.000139,2]
[330945983,1719963040929,-2302.74565689,0.000139,2]
[330945984,1719963040940,-221.47981792,0.000139,2]
[330945985,1719963040951,-385.10220627,0.00013921,2]
[330945986,1719963040961,-150.0,0.00013959,2]
[330945987,1719963040976,-150.0,0.00013983,2]
[330945988,1719963040985,-9517.334902,0.00013989,2]
[330945989,1719963040996,-3057.0428613,0.00013989,2]
[330945990,1719963041007,-1045.78630558,0.00013999,2]
[330945991,1719963041019,-1061.80299204,0.00013999,5]
[330945992,1719963041031,-1061.80299205,0.00013999,5]
[330945993,1719963041042,-528.0,0.00014,2]
[330945994,1719963041053,-534832.44071568,0.00014,2]
[330945995,1719963041067,-476197.95467422,0.00014,2]
[330946068,1719963043156,-1013.27421864,0.00014,2]
[330946070,1719963043169,-13261.95912414,0.00014,2]
[330946072,1719963043186,-12438.222104,0.00014,2]
[330946087,1719963043356,-12387.60499801,0.00014,2]
[330946089,1719963043368,-33340.24392775,0.00014,2]
[330946091,1719963043380,-411.0618071,0.00014,2]
[330946094,1719963043391,-1377.3667903,0.00014,2]
[330946096,1719963043402,-626.19462444,0.00014,2]
[330946121,1719963043644,-35736.3529148,0.00014,2]
[330946124,1719963043666,-397.66172814,0.00014,2]
[330946127,1719963043690,-7416.18746697,0.00014,2]
[330946130,1719963043706,-4043.23692891,0.00014,2]
[330946132,1719963043726,-2807.8000002,0.00014,2]
[330946133,1719963043743,-1212.44429205,0.00014,2]
[330946134,1719963043759,-806.1100004,0.00014,2]
[330946135,1719963043778,-899.58260577,0.00014,2]
[330946136,1719963043795,-888.50000003,0.00014,2]
[330946137,1719963043812,-251.86,0.00014,2]
[330946154,1719963046300,-389.63124367,0.00014,2]
[330946155,1719963046312,-6254.49072629,0.00014,2]
[330946156,1719963046676,-663.9015468,0.00014,2]
[330946157,1719963046687,-275.919,0.00014,2]
[330946158,1719963046699,-14166.94,0.00014,2]
[330946159,1719963046713,-469.65,0.00014,2]
[330946160,1719963046725,-1585.76022763,0.00014,2]
[330946161,1719963046782,-1349.55162306,0.00014,2]
[330946162,1719963046794,-479590.77272055,0.00014,2]
[330946163,1719963046805,-749.45116312,0.00014,2]
[330946164,1719963046816,-662.63936826,0.00014,2]
[330946310,1719963302950,474.81,0.00010955,2]
[330946311,1719963343725,6040.0,0.000112,2]
[330946321,1719963838415,451.06,0.00010856,2]
[330946324,1719964069617,155.0,0.00011199,2]
[330946326,1719964129761,474.34627005,0.00011199,2]
[330946349,1719964232039,-911.07205506,0.000118,2]
[330946352,1719964232096,-4833.47674707,0.000118,2]
[330946353,1719964232106,-530.46,0.00012736,2]
[330946354,1719964232115,-250.0,0.00012756,2]
[330946355,1719964232124,-250.0,0.00012766,2]
[330946356,1719964232133,-725.95293104,0.0001277,2]
[330946357,1719964232143,-500.0,0.0001277,2]
[330946358,1719964232152,-184.43,0.00012787,2]
[330946359,1719964232161,-460.8,0.0001279,2]
[330946360,1719964232170,-499.99,0.0001279,2]
[330946361,1719964232180,-150.0,0.00012822,2]
[330946362,1719964232188,-1001.6,0.00012835,2]
[330946363,1719964232197,-158.91,0.00012873,2]
[330946364,1719964232207,-167.82,0.00012887,2]
[330946365,1719964232215,-769.6,0.00012893,2]
[330946366,1719964232224,-150.99,0.00012893,2]
[330946367,1719964232233,-180.9,0.00012895,2]
[330946368,1719964232243,-451.06,0.0001312,2]
[330946369,1719964232252,-837.68,0.00013341,2]
[330946370,1719964232260,-155.0,0.00013516,2]
[330946371,1719964232270,-1053.42724176,0.00013516,2]
[330946372,1719964232279,-158.91,0.00013544,2]
[330946373,1719964232289,-438.16706068,0.00013574,2]
[330946374,1719964232298,-150.0,0.00013698,2]
[330946375,1719964232307,-200.0,0.00013699,2]
[330946376,1719964232315,-10000.0,0.00013699,2]
[330946378,1719964232325,-3585.79,0.00013699,2]
[330946379,1719964232334,-1145.43,0.00013699,2]
[330946381,1719964232344,-166.15,0.00013699,2]
[330946383,1719964232353,-150.0,0.00013721,2]
[330946385,1719964232362,-150.0,0.00013731,2]
[330946387,1719964232371,-150.0,0.00013735,2]
[330946389,1719964232381,-150.0,0.00013739,2]
[330946391,1719964232390,-150.0,0.00013739,2]
[330946393,1719964232399,-150.0,0.0001375,2]
[330946395,1719964232408,-150.0,0.00013753,2]
[330946397,1719964232417,-150.0,0.00013756,2]
[330946400,1719964232427,-150.0,0.00013761,2]
[330946403,1719964232436,-150.0,0.00013761,2]
[330946406,1719964232445,-150.0,0.00013765,2]
[330946408,1719964232454,-150.0,0.00013766,2]
[330946410,1719964232463,-150.0,0.00013773,2]
[330946412,1719964232473,-150.0,0.00013777,2]
[330946414,1719964232483,-150.0,0.00013778,2]
[330946416,1719964232492,-150.0,0.00013786,2]
[330946418,1719964232501,-150.0,0.00013797,2]
[330946420,1719964232511,-1000.0,0.00013799,2]
[330946422,1719964232520,-150.0,0.00013802,2]
[330946423,1719964232529,-150.0,0.00013811,2]
[330946424,1719964232539,-150.0,0.00013814,2]
[330946425,1719964232548,-150.0,0.00013826,2]
[330946426,1719964232557,-150.0,0.00013828,2]
[330946427,1719964232566,-150.0,0.00013833,2]
[330946428,1719964232575,-150.0,0.00013836,2]
[330946429,1719964232584,-150.0,0.00013839,2]
[330946430,1719964232593,-150.0,0.00013847,2]
[330946431,1719964232602,-354.84061564,0.0001385,2]
[330946432,1719964232611,-150.0,0.00013859,2]
[330946433,1719964232620,-150.0,0.00013859,2]
[330946434,1719964232629,-590.45249845,0.0001386,2]
[330946435,1719964232639,-2207.60334,0.0001386,2]
[330946436,1719964232648,-150.0,0.00013863,2]
[330946437,1719964232657,-150.0,0.00013863,2]
[330946438,1719964232667,-150.0,0.00013865,2]
[330946439,1719964232676,-5892.21138441,0.0001387,2]
[330946440,1719964232689,-150.0,0.00013871,2]
[330946441,1719964232699,-150.0,0.00013873,2]
[330946442,1719964232709,-150.0,0.00013876,2]
[330946443,1719964232720,-150.0,0.00013877,2]
[330946444,1719964232731,-293.22784226,0.00013879,2]
[330946445,1719964232740,-500.0,0.00013887,2]
[330946446,1719964232750,-500.0,0.00013888,2]
[330946447,1719964232761,-500.0,0.00013888,2]
[330946448,1719964232772,-787.31697384,0.00013889,2]
[330946449,1719964232782,-150.0,0.00013892,2]
[330946450,1719964232791,-150.0,0.00013892,2]
[330946451,1719964232800,-150.0,0.00013896,2]
[330946452,1719964232809,-1492.83517289,0.00013899,2]
[330946453,1719964232819,-677.6436,0.000139,2]
[330946454,1719964232829,-203.51161649,0.000139,2]
[330946455,1719964232838,-163.55527443,0.000139,2]
[330946456,1719964232846,-163.26289088,0.000139,2]
[330946457,1719964232856,-985.36778298,0.000139,2]
[330946458,1719964232865,-569.82596788,0.000139,2]
[330946459,1719964232874,-322.17160086,0.000139,2]
[330946460,1719964232883,-2544.08831349,0.000139,2]
[330946461,1719964232892,-4968.01593778,0.000139,2]
[330946462,1719964232902,-150.0,0.00013903,2]
[330946463,1719964232911,-150.0,0.00013903,2]
[330946464,1719964232920,-150.0,0.00013905,2]
[330946465,1719964232929,-150.0,0.00013909,2]
[330946466,1719964232939,-150.0,0.0001392,2]
[330946467,1719964232948,-150.0,0.00013931,2]
[330946468,1719964232958,-150.0,0.00013933,2]
[330946469,1719964232968,-150.0,0.00013939,2]
[330946470,1719964232977,-150.0,0.00013948,2]
[330946471,1719964232987,-150.0,0.00013949,2]
[330946472,1719964232996,-150.0,0.00013953,2]
[330946473,1719964233005,-150.0,0.00013954,2]
[330946474,1719964233015,-150.0,0.00013954,2]
[330946475,1719964233023,-150.0,0.00013956,2]
[330946476,1719964233033,-150.0,0.00013964,2]